fUST/lending_fUST_20241112
["ID","MTS","AMOUNT","RATE_DAILY","PERIOD"]
[342051824,1731395448272,-500.0,0.00022191,2]
[342051825,1731395448281,-500.0,0.00022191,2]
[342051826,1731395448291,-690.09,0.00022191,2]
[342051827,1731395448300,-500.0,0.00022191,2]
[342051828,1731395448309,-500.0,0.00022191,2]
[342051829,1731395448318,-3140.86,0.00022191,2]
[342051830,1731395448327,-500.0,0.00022191,2]
[342051831,1731395448336,-500.0,0.00022191,2]
[342051832,1731395448346,-500.0,0.00022191,2]
[342051833,1731395448355,-500.0,0.00022191,2]
[342051834,1731395448364,-500.0,0.00022191,2]
[342051835,1731395448373,-500.0,0.00022191,2]
[342051836,1731395448381,-500.0,0.00022191,2]
[342051837,1731395448390,-1329.26,0.00022191,2]
[342051838,1731395448399,-500.0,0.00022191,2]
[342051839,1731395448408,-1361.49,0.00022191,2]
[342051840,1731395448417,-500.0,0.00022191,2]
[342051841,1731395448426,-500.0,0.00022191,2]
[342051842,1731395448438,-500.0,0.00022191,2]
[342051843,1731395448447,-500.0,0.00022191,2]
[342051844,1731395448458,-500.0,0.00022191,2]
[342051845,1731395448468,-754.43,0.00022191,2]
[342051846,1731395448478,-1514.78,0.00022191,2]
[342051847,1731395448487,-500.0,0.00022191,2]
[342051848,1731395448497,-500.0,0.00022191,2]
[342051849,1731395448506,-500.0,0.00022191,2]
[342051850,1731395448515,-175.91163253,0.00022191,2]
[342051851,1731395448525,-500.0,0.00022191,2]
[342051852,1731395448535,-248.095112,0.00022191,7]
[342051853,1731395448544,-500.0,0.00022191,2]
[342051854,1731395448553,-500.0,0.00022191,2]
[342051855,1731395448562,-248.095112,0.00022191,7]
[342051856,1731395448571,-248.095112,0.00022191,7]
[342051857,1731395448580,-633.9,0.00022191,2]
[342051858,1731395448590,-500.0,0.00022191,2]
[342051859,1731395448599,-500.0,0.00022191,2]
[342051860,1731395448609,-500.0,0.00022191,2]
[342051861,1731395448618,-248.095112,0.00022191,7]
[342051862,1731395448627,-248.095112,0.00022191,7]
[342051863,1731395448636,-248.095114,0.00022191,7]
[342051864,1731395448646,-500.0,0.00022191,2]
[342051865,1731395448655,-815.11,0.00022191,2]
[342051866,1731395448665,-601.15369467,0.00022191,2]
[342051867,1731395448675,-613.97278429,0.00022191,2]
[342051868,1731395448685,-544.28589609,0.00022191,2]
[342051869,1731395448694,-500.0,0.00022191,2]
[342051870,1731395448703,-500.0,0.00022191,2]
[342051871,1731395448712,-611.92,0.00022191,2]
[342051872,1731395448721,-566.07616342,0.00022191,2]
[342051873,1731395448731,-515.71016255,0.00022191,2]
[342051874,1731395448740,-500.0,0.00022191,2]
[342051875,1731395448749,-500.0,0.00022191,2]
[342051876,1731395448758,-12440.19,0.00022191,2]
[342051877,1731395448767,-500.0,0.00022191,2]
[342051878,1731395448776,-500.0,0.00022191,2]
[342051879,1731395448786,-515.26,0.00022191,2]
[342051880,1731395448795,-315.98841706,0.00022191,2]
[342051881,1731395448804,-782.05,0.00022191,2]
[342051882,1731395448814,-505.64140249,0.00022191,2]
[342051883,1731395448823,-958.04,0.00022191,2]
[342051884,1731395448832,-500.0,0.00022191,2]
[342051885,1731395448841,-500.0,0.00022191,2]
[342051886,1731395448850,-500.0,0.00022191,2]
[342051887,1731395448859,-500.0,0.00022191,2]
[342051888,1731395448869,-500.0,0.00022191,2]
[342051889,1731395448878,-500.0,0.00022191,2]
[342051890,1731395448887,-500.0,0.00022191,2]
[342051891,1731395448896,-500.0,0.00022191,2]
[342051892,1731395448906,-253.09179798,0.00022191,2]
[342051893,1731395448916,-500.0,0.00022191,2]
[342051894,1731395448926,-517.22,0.00022191,2]
[342051895,1731395448937,-500.0,0.00022191,2]
[342051896,1731395448947,-1035.61,0.00022191,2]
[342051897,1731395448956,-500.0,0.00022191,2]
[342051898,1731395448966,-974.3,0.00022191,2]
[342051899,1731395448975,-503.65622894,0.00022191,2]
[342051900,1731395448983,-500.0,0.00022191,2]
[342051901,1731395448992,-500.0,0.00022191,2]
[342051902,1731395449002,-504.417405,0.00022191,2]
[342051903,1731395449012,-3387.7,0.00022191,2]
[342051904,1731395449021,-500.0,0.00022191,2]
[342051905,1731395449030,-500.0,0.00022191,2]
[342051906,1731395449040,-1217.45,0.00022191,2]
[342051907,1731395449050,-500.0,0.00022191,2]
[342051908,1731395449059,-500.0,0.00022191,2]
[342051909,1731395449069,-575.64,0.00022191,2]
[342051910,1731395449079,-500.0,0.00022191,2]
[342051911,1731395449088,-410.0,0.00022192,2]
[342051912,1731395449097,-167.0,0.00022192,2]
[342051913,1731395449107,-160.0,0.000223,5]
[342051914,1731395449116,-158.096,0.0002238,2]
[342051915,1731395449125,-186.0,0.000224,2]
[342051916,1731395449134,-300.0,0.000224,10]
[342051917,1731395449144,-166.666666,0.00022431,2]
[342051918,1731395449153,-150.03,0.00022465,2]
[342051919,1731395449163,-500.0,0.00022465,2]
[342051920,1731395449172,-500.0,0.00022465,2]
[342051921,1731395449181,-150.03,0.00022465,2]
[342051922,1731395449191,-500.0,0.00022465,2]
[342051923,1731395449200,-500.0,0.00022465,2]
[342051924,1731395449209,-201.95310859,0.00022465,2]
[342051925,1731395449219,-500.0,0.00022465,2]
[342051926,1731395449228,-500.0,0.00022465,2]
[342051927,1731395449237,-500.0,0.00022465,2]
[342051928,1731395449247,-500.0,0.00022465,2]
[342051929,1731395449256,-500.0,0.00022465,2]
[342051930,1731395449265,-515.11027934,0.00022465,2]
[342051931,1731395449275,-544.45,0.00022465,2]
[342051932,1731395449284,-500.0,0.00022465,2]
[342051933,1731395449293,-500.0,0.00022465,2]
[342051934,1731395449302,-500.0,0.00022465,2]
[342051935,1731395449313,-209.11114463,0.00022465,2]
[342051936,1731395449322,-515.04,0.00022465,2]
[342051937,1731395449332,-500.0,0.00022465,2]
[342051938,1731395449341,-500.0,0.00022465,2]
[342051939,1731395449351,-500.0,0.00022465,2]
[342051940,1731395449360,-554.84,0.00022465,2]
[342051941,1731395449369,-500.0,0.00022465,2]
[342051942,1731395449379,-500.0,0.00022465,2]
[342051943,1731395449388,-500.0,0.00022465,2]
[342051944,1731395449398,-320.79068732,0.00022465,2]
[342051945,1731395449407,-608.90226024,0.00022465,2]
[342051946,1731395449417,-500.0,0.00022465,2]
[342051947,1731395449426,-500.0,0.00022465,2]
[342051948,1731395449437,-201.76032042,0.00022465,2]
[342051949,1731395449448,-500.0,0.00022465,2]
[342051950,1731395449459,-500.0,0.00022465,2]
[342051951,1731395449469,-500.0,0.00022465,2]
[342051952,1731395449479,-500.0,0.00022465,2]
[342051953,1731395449488,-1157.98,0.00022465,2]
[342051954,1731395449498,-500.0,0.00022465,2]
[342051955,1731395449507,-500.0,0.00022465,2]
[342051956,1731395449517,-861.1,0.00022465,2]
[342051957,1731395449526,-528.28,0.00022465,2]
[342051958,1731395449539,-159.27730559,0.00022465,2]
[342051959,1731395449549,-500.0,0.00022465,2]
[342051960,1731395449558,-500.0,0.00022465,2]
[342051961,1731395449567,-500.0,0.00022465,2]
[342051962,1731395449576,-500.0,0.00022465,2]
[342051963,1731395449586,-618.55851878,0.00022465,2]
[342051964,1731395449595,-516.92069076,0.00022465,2]
[342051965,1731395449604,-500.0,0.00022465,2]
[342051966,1731395449613,-500.0,0.00022465,2]
[342051967,1731395449623,-500.0,0.00022465,2]
[342051968,1731395449632,-500.0,0.00022465,2]
[342051969,1731395449641,-500.0,0.00022465,2]
[342051970,1731395449650,-500.0,0.00022465,2]
[342051971,1731395449660,-511.52229824,0.00022465,2]
[342051972,1731395449670,-500.0,0.00022465,2]
[342051973,1731395449679,-500.0,0.00022465,2]
[342051974,1731395449693,-500.0,0.00022465,2]
[342051975,1731395449702,-500.0,0.00022465,2]
[342051976,1731395449712,-500.0,0.00022465,2]
[342051977,1731395449721,-500.0,0.00022465,2]
[342051978,1731395449730,-500.0,0.00022465,2]
[342051979,1731395449739,-500.0,0.00022465,2]
[342051980,1731395449749,-500.0,0.00022465,2]
[342051981,1731395449758,-178.69489092,0.00022465,2]
[342051982,1731395449768,-500.0,0.00022465,2]
[342051983,1731395449777,-178.47498037,0.00022465,2]
[342051984,1731395449787,-500.0,0.00022465,2]
[342051985,1731395449796,-500.0,0.00022465,2]
[342051986,1731395449806,-500.0,0.00022465,2]
[342051987,1731395449815,-529.4,0.00022465,2]
[342051988,1731395449825,-500.0,0.00022465,2]
[342051989,1731395449835,-500.0,0.00022465,2]
[342051990,1731395449844,-500.0,0.00022465,2]
[342051991,1731395449854,-687.54,0.00022465,2]
[342051992,1731395449863,-500.0,0.00022465,2]
[342051993,1731395449872,-524.07574945,0.00022465,2]
[342051994,1731395449881,-500.0,0.00022465,2]
[342051995,1731395449890,-277.40050083,0.00022465,2]
[342051996,1731395449900,-500.0,0.00022465,2]
[342051997,1731395449910,-687.26,0.00022465,2]
[342051998,1731395449920,-2336.0,0.00022465,2]
[342051999,1731395449929,-500.0,0.00022465,2]
[342052000,1731395449941,-500.0,0.00022465,2]
[342052001,1731395449951,-500.0,0.00022465,2]
[342052002,1731395449961,-500.0,0.00022465,2]
[342052003,1731395449970,-500.0,0.00022465,2]
[342052004,1731395449979,-500.0,0.00022465,2]
[342052005,1731395449989,-500.0,0.00022465,2]
[342052006,1731395449998,-500.0,0.00022465,2]
[342052007,1731395450008,-2310.28,0.00022465,2]
[342052008,1731395450018,-500.0,0.00022465,2]
[342052009,1731395450028,-500.0,0.00022465,2]
[342052010,1731395450038,-500.0,0.00022465,2]
[342052011,1731395450047,-500.0,0.00022465,2]
[342052012,1731395450057,-500.0,0.00022465,2]
[342052013,1731395450066,-500.0,0.00022465,2]
[342052014,1731395450076,-410.67589186,0.00022465,2]
[342052015,1731395450085,-500.0,0.00022465,2]
[342052016,1731395450095,-500.0,0.00022465,2]
[342052017,1731395450104,-500.0,0.00022465,2]
[342052018,1731395450113,-500.0,0.00022465,2]
[342052019,1731395450123,-500.0,0.00022465,2]
[342052020,1731395450132,-500.0,0.00022465,2]
[342052021,1731395450141,-500.0,0.00022465,2]
[342052022,1731395450151,-500.0,0.00022465,2]
[342052023,1731395450161,-538.93237744,0.00022465,2]
[342052024,1731395450171,-500.0,0.00022465,2]
[342052025,1731395450180,-500.0,0.00022465,2]
[342052026,1731395450190,-500.0,0.00022465,2]
[342052027,1731395450199,-500.0,0.00022465,2]
[342052028,1731395450208,-500.0,0.00022465,2]
[342052029,1731395450218,-500.0,0.00022465,2]
[342052030,1731395450227,-372.67554763,0.00022465,2]
[342052031,1731395450236,-2204.59,0.00022465,2]
[342052032,1731395450245,-500.0,0.00022465,2]
[342052033,1731395450255,-500.0,0.00022465,2]
[342052034,1731395450263,-500.0,0.00022465,2]
[342052035,1731395450273,-500.0,0.00022465,2]
[342052036,1731395450282,-657.25,0.00022465,2]
[342052037,1731395450291,-500.0,0.00022465,2]
[342052038,1731395450301,-6271.46,0.00022465,2]
[342052039,1731395450311,-883.62,0.00022465,2]
[342052040,1731395450320,-573.94,0.00022465,2]
[342052041,1731395450329,-925.17,0.00022465,2]
[342052042,1731395450338,-500.0,0.00022465,2]
[342052043,1731395450347,-500.0,0.00022465,2]
[342052044,1731395450355,-500.0,0.00022465,2]
[342052045,1731395450365,-500.0,0.00022465,2]
[342052046,1731395450375,-1011.75,0.00022465,2]
[342052047,1731395450532,-19034.84,0.00022465,2]
[342052048,1731395450542,-1831.69,0.00022465,2]
[342052049,1731395450553,-508.44869711,0.00022465,2]
[342052050,1731395450563,-500.0,0.00022465,2]
[342052051,1731395450573,-500.0,0.00022465,2]
[342052052,1731395450583,-564.26,0.00022465,2]
[342052053,1731395450593,-500.0,0.00022465,2]
[342052054,1731395450602,-1321.42,0.00022465,2]
[342052055,1731395450612,-500.0,0.00022465,2]
[342052056,1731395450622,-523.30400976,0.00022465,2]
[342052057,1731395450633,-500.0,0.00022465,2]
[342052058,1731395450642,-500.0,0.00022465,2]
[342052059,1731395450652,-500.0,0.00022465,2]
[342052060,1731395450662,-500.0,0.00022465,2]
[342052061,1731395450672,-500.0,0.00022465,2]
[342052062,1731395450681,-516.24,0.00022465,2]
[342052063,1731395450691,-1588.61,0.00022465,2]
[342052064,1731395450700,-500.0,0.00022465,2]
[342052065,1731395450709,-500.0,0.00022465,2]
[342052066,1731395450719,-500.0,0.00022465,2]
[342052067,1731395450729,-6707.74,0.00022465,2]
[342052068,1731395450739,-500.0,0.00022465,2]
[342052069,1731395450748,-500.0,0.00022465,2]
[342052070,1731395450758,-500.0,0.00022465,2]
[342052071,1731395450767,-500.0,0.00022465,2]
[342052072,1731395450777,-4781.29,0.00022465,2]
[342052073,1731395450787,-1089.53,0.00022465,2]
[342052074,1731395450796,-443.76744663,0.00022465,2]
[342052075,1731395450806,-500.0,0.00022465,2]
[342052076,1731395450815,-500.0,0.00022465,2]
[342052077,1731395450825,-500.0,0.00022465,2]
[342052078,1731395450834,-737.22,0.00022465,2]
[342052079,1731395450844,-500.0,0.00022465,2]
[342052080,1731395450854,-8365.05,0.00022465,2]
[342052081,1731395450864,-1231.58,0.00022465,2]
[342052082,1731395450873,-578.71,0.00022465,2]
[342052083,1731395450882,-500.0,0.00022465,2]
[342052084,1731395450891,-500.0,0.00022465,2]
[342052085,1731395450901,-506.81905352,0.00022465,2]
[342052086,1731395450911,-500.0,0.00022465,2]
[342052087,1731395450921,-500.0,0.00022465,2]
[342052088,1731395450930,-500.0,0.00022465,2]
[342052089,1731395450941,-690.09,0.00022465,2]
[342052090,1731395450951,-500.0,0.00022465,2]
[342052091,1731395450960,-568.68557058,0.00022465,2]
[342052092,1731395450970,-3140.86,0.00022465,2]
[342052093,1731395450979,-500.0,0.00022465,2]
[342052094,1731395450989,-500.0,0.00022465,2]
[342052095,1731395450998,-500.0,0.00022465,2]
[342052096,1731395451008,-500.0,0.00022465,2]
[342052097,1731395451017,-500.0,0.00022465,2]
[342052098,1731395451026,-500.0,0.00022465,2]
[342052099,1731395451036,-500.0,0.00022465,2]
[342052100,1731395451046,-1329.26,0.00022465,2]
[342052101,1731395451055,-504.88144218,0.00022465,2]
[342052102,1731395451064,-1361.49,0.00022465,2]
[342052103,1731395451074,-500.0,0.00022465,2]
[342052104,1731395451084,-500.0,0.00022465,2]
[342052105,1731395451093,-500.0,0.00022465,2]
[342052106,1731395451102,-500.0,0.00022465,2]
[342052107,1731395451111,-500.0,0.00022465,2]
[342052108,1731395451121,-754.43,0.00022465,2]
[342052109,1731395451131,-1514.78,0.00022465,2]
[342052110,1731395451141,-500.0,0.00022465,2]
[342052111,1731395451151,-500.0,0.00022465,2]
[342052112,1731395451160,-500.0,0.00022465,2]
[342052113,1731395451170,-500.0,0.00022465,2]
[342052114,1731395451180,-633.9,0.00022465,2]
[342052115,1731395451194,-500.0,0.00022465,2]
[342052116,1731395451204,-500.0,0.00022465,2]
[342052117,1731395451215,-500.0,0.00022465,2]
[342052118,1731395451224,-815.11,0.00022465,2]
[342052119,1731395451235,-500.0,0.00022465,2]
[342052120,1731395451245,-611.92,0.00022465,2]
[342052121,1731395451255,-502.94346829,0.00022465,2]
[342052122,1731395451265,-500.0,0.00022465,2]
[342052123,1731395451274,-12440.19,0.00022465,2]
[342052124,1731395451284,-500.0,0.00022465,2]
[342052125,1731395451293,-515.26,0.00022465,2]
[342052126,1731395451302,-782.05,0.00022465,2]
[342052127,1731395451311,-958.04,0.00022465,2]
[342052128,1731395451320,-500.0,0.00022465,2]
[342052129,1731395451329,-500.0,0.00022465,2]
[342052130,1731395451338,-500.0,0.00022465,2]
[342052131,1731395451347,-500.0,0.00022465,2]
[342052132,1731395451356,-500.0,0.00022465,2]
[342052133,1731395451366,-500.0,0.00022465,2]
[342052134,1731395451375,-500.0,0.00022465,2]
[342052135,1731395451384,-517.22,0.00022465,2]
[342052136,1731395451393,-500.0,0.00022465,2]
[342052137,1731395451402,-1035.61,0.00022465,2]
[342052138,1731395451411,-500.0,0.00022465,2]
[342052139,1731395451421,-974.3,0.00022465,2]
[342052140,1731395451431,-500.0,0.00022465,2]
[342052141,1731395451443,-500.0,0.00022465,2]
[342052142,1731395451452,-3387.7,0.00022465,2]
[342052143,1731395451465,-500.0,0.00022465,2]
[342052144,1731395451475,-500.0,0.00022465,2]
[342052145,1731395451484,-1217.45,0.00022465,2]
[342052146,1731395451493,-500.0,0.00022465,2]
[342052147,1731395451504,-500.0,0.00022465,2]
[342052148,1731395451514,-613.13211248,0.00022521,2]
[342052149,1731395451523,-1000.0,0.00022521,2]
[342052150,1731395451533,-1000.0,0.00022521,2]
[342052151,1731395451544,-1000.0,0.00022521,2]
[342052152,1731395451555,-349.55908742,0.00022521,2]
[342052153,1731395451564,-420.0,0.00022677,2]
[342052154,1731395451573,-160.0,0.000227,6]
[342052155,1731395451582,-161.11728841,0.00022721,2]
[342052156,1731395451592,-1000.0,0.00022721,2]
[342052157,1731395451601,-1000.0,0.00022721,2]
[342052158,1731395451610,-1000.0,0.00022721,2]
[342052159,1731395451619,-1000.0,0.00022721,2]
[342052160,1731395451628,-1000.0,0.00022721,2]
[342052161,1731395451637,-1000.0,0.00022721,2]
[342052162,1731395451647,-700.11141135,0.00022721,2]
[342052163,1731395451656,-638.22368913,0.00022721,2]
[342052164,1731395451665,-205.46852541,0.00022739,2]
[342052165,1731395451675,-793.32241789,0.00022739,2]
[342052166,1731395451686,-250.77772124,0.00022739,2]
[342052167,1731395451695,-500.0,0.00022739,2]
[342052168,1731395451705,-500.0,0.00022739,2]
[342052169,1731395451714,-500.0,0.00022739,2]
[342052170,1731395451723,-500.0,0.00022739,2]
[342052171,1731395451733,-500.0,0.00022739,2]
[342052172,1731395451742,-500.0,0.00022739,2]
[342052173,1731395451751,-500.0,0.00022739,2]
[342052174,1731395451761,-544.45,0.00022739,2]
[342052175,1731395451770,-202.54995033,0.00022739,2]
[342052176,1731395451780,-400.43900493,0.00022739,2]
[342052177,1731395451789,-515.04,0.00022739,2]
[342052178,1731395451798,-500.0,0.00022739,2]
[342052179,1731395451807,-554.84,0.00022739,2]
[342052180,1731395451816,-500.0,0.00022739,2]
[342052181,1731395451826,-500.0,0.00022739,2]
[342052182,1731395451835,-500.0,0.00022739,2]
[342052183,1731395451844,-500.0,0.00022739,2]
[342052184,1731395451853,-509.92347975,0.00022739,2]
[342052185,1731395451863,-500.0,0.00022739,2]
[342052186,1731395451873,-500.0,0.00022739,2]
[342052187,1731395451882,-170.9,0.00022739,2]
[342052188,1731395451891,-500.0,0.00022739,2]
[342052189,1731395451900,-1157.98,0.00022739,2]
[342052190,1731395451910,-533.19447709,0.00022739,2]
[342052191,1731395451920,-500.0,0.00022739,2]
[342052192,1731395451929,-861.1,0.00022739,2]
[342052193,1731395451940,-528.28,0.00022739,2]
[342052194,1731395451950,-500.0,0.00022739,2]
[342052195,1731395451959,-173.50168784,0.00022739,2]
[342052196,1731395451968,-321.56,0.00022739,2]
[342052197,1731395451977,-500.0,0.00022739,2]
[342052198,1731395451987,-508.63541294,0.00022739,2]
[342052199,1731395451996,-500.0,0.00022739,2]
[342052200,1731395452006,-500.0,0.00022739,2]
[342052201,1731395452016,-328.31473729,0.00022739,2]
[342052202,1731395452025,-500.0,0.00022739,2]
[342052203,1731395452035,-500.0,0.00022739,2]
[342052204,1731395452044,-500.0,0.00022739,2]
[342052205,1731395452054,-503.67010491,0.00022739,2]
[342052206,1731395452063,-500.0,0.00022739,2]
[342052207,1731395452072,-500.0,0.00022739,2]
[342052208,1731395452082,-500.0,0.00022739,2]
[342052209,1731395452091,-500.0,0.00022739,2]
[342052210,1731395452101,-500.0,0.00022739,2]
[342052211,1731395452110,-500.0,0.00022739,2]
[342052212,1731395452119,-500.0,0.00022739,2]
[342052213,1731395452128,-500.0,0.00022739,2]
[342052214,1731395452137,-529.4,0.00022739,2]
[342052215,1731395452147,-500.0,0.00022739,2]
[342052216,1731395452157,-500.0,0.00022739,2]
[342052217,1731395452166,-500.0,0.00022739,2]
[342052218,1731395452177,-687.54,0.00022739,2]
[342052219,1731395452188,-500.0,0.00022739,2]
[342052220,1731395452198,-500.0,0.00022739,2]
[342052221,1731395452207,-500.0,0.00022739,2]
[342052222,1731395452217,-687.26,0.00022739,2]
[342052223,1731395452227,-500.0,0.00022739,2]
[342052224,1731395452236,-500.0,0.00022739,2]
[342052225,1731395452246,-500.0,0.00022739,2]
[342052226,1731395452255,-500.0,0.00022739,2]
[342052227,1731395452264,-2310.28,0.00022739,2]
[342052228,1731395452274,-500.0,0.00022739,2]
[342052229,1731395452283,-500.0,0.00022739,2]
[342052230,1731395452291,-500.0,0.00022739,2]
[342052231,1731395452300,-500.0,0.00022739,2]
[342052232,1731395452310,-500.0,0.00022739,2]
[342052233,1731395452319,-500.0,0.00022739,2]
[342052234,1731395452329,-500.0,0.00022739,2]
[342052235,1731395452338,-500.0,0.00022739,2]
[342052236,1731395452347,-536.41748244,0.00022739,2]
[342052237,1731395452357,-500.0,0.00022739,2]
[342052238,1731395452366,-327.21431306,0.00022739,2]
[342052239,1731395452375,-500.0,0.00022739,2]
[342052240,1731395452385,-500.0,0.00022739,2]
[342052241,1731395452395,-500.0,0.00022739,2]
[342052242,1731395452404,-500.0,0.00022739,2]
[342052243,1731395452414,-500.0,0.00022739,2]
[342052244,1731395452423,-509.72095818,0.00022739,2]
[342052245,1731395452435,-2204.59,0.00022739,2]
[342052246,1731395452445,-500.0,0.00022739,2]
[342052247,1731395452457,-500.0,0.00022739,2]
[342052248,1731395452468,-500.0,0.00022739,2]
[342052249,1731395452476,-500.0,0.00022739,2]
[342052250,1731395452486,-657.25,0.00022739,2]
[342052251,1731395452495,-500.0,0.00022739,2]
[342052252,1731395452506,-6271.46,0.00022739,2]
[342052253,1731395452516,-883.62,0.00022739,2]
[342052254,1731395452525,-573.94,0.00022739,2]
[342052255,1731395452536,-925.17,0.00022739,2]
[342052256,1731395452546,-500.0,0.00022739,2]
[342052257,1731395452565,-500.0,0.00022739,2]
[342052258,1731395452584,-500.0,0.00022739,2]
[342052259,1731395452597,-500.0,0.00022739,2]
[342052260,1731395452610,-1011.75,0.00022739,2]
[342052261,1731395452621,-19034.84,0.00022739,2]
[342052262,1731395452632,-1831.69,0.00022739,2]
[342052263,1731395452644,-500.0,0.00022739,2]
[342052264,1731395452655,-500.0,0.00022739,2]
[342052265,1731395452667,-564.26,0.00022739,2]
[342052266,1731395452677,-500.0,0.00022739,2]
[342052267,1731395452688,-1321.42,0.00022739,2]
[342052268,1731395452698,-644.74457228,0.00022739,2]
[342052269,1731395452708,-500.0,0.00022739,2]
[342052270,1731395452720,-500.0,0.00022739,2]
[342052271,1731395452731,-500.0,0.00022739,2]
[342052272,1731395452746,-516.24,0.00022739,2]
[342052273,1731395452758,-1588.61,0.00022739,2]
[342052274,1731395452771,-500.0,0.00022739,2]
[342052275,1731395452786,-216.09245329,0.00022739,2]
[342052276,1731395452800,-500.0,0.00022739,2]
[342052277,1731395452814,-6707.74,0.00022739,2]
[342052278,1731395452826,-500.0,0.00022739,2]
[342052279,1731395452839,-500.0,0.00022739,2]
[342052280,1731395452849,-500.0,0.00022739,2]
[342052281,1731395452859,-4781.29,0.00022739,2]
[342052282,1731395452869,-1089.53,0.00022739,2]
[342052283,1731395452878,-500.0,0.00022739,2]
[342052284,1731395452888,-500.0,0.00022739,2]
[342052285,1731395452897,-737.22,0.00022739,2]
[342052286,1731395452906,-500.0,0.00022739,2]
[342052287,1731395452916,-8365.05,0.00022739,2]
[342052288,1731395452926,-1231.58,0.00022739,2]
[342052289,1731395452937,-578.71,0.00022739,2]
[342052290,1731395452947,-500.0,0.00022739,2]
[342052291,1731395452956,-500.0,0.00022739,2]
[342052292,1731395452966,-472.31666232,0.00022739,2]
[342052293,1731395452975,-500.0,0.00022739,2]
[342052294,1731395452983,-500.0,0.00022739,2]
[342052295,1731395452993,-690.09,0.00022739,2]
[342052296,1731395453003,-500.0,0.00022739,2]
[342052297,1731395453013,-3140.86,0.00022739,2]
[342052298,1731395453023,-500.0,0.00022739,2]
[342052299,1731395453033,-381.99523059,0.00022739,2]
[342052300,1731395453043,-500.0,0.00022739,2]
[342052301,1731395453052,-500.0,0.00022739,2]
[342052302,1731395453062,-500.0,0.00022739,2]
[342052303,1731395453072,-500.0,0.00022739,2]
[342052304,1731395453083,-500.0,0.00022739,2]
[342052305,1731395453092,-1329.26,0.00022739,2]
[342052306,1731395453102,-1361.49,0.00022739,2]
[342052307,1731395453111,-500.0,0.00022739,2]
[342052308,1731395453121,-500.0,0.00022739,2]
[342052309,1731395453131,-500.0,0.00022739,2]
[342052310,1731395453140,-346.57337129,0.00022739,2]
[342052311,1731395453149,-754.43,0.00022739,2]
[342052312,1731395453159,-1514.78,0.00022739,2]
[342052313,1731395453168,-500.0,0.00022739,2]
[342052314,1731395453178,-500.0,0.00022739,2]
[342052315,1731395453189,-500.0,0.00022739,2]
[342052316,1731395453199,-500.0,0.00022739,2]
[342052317,1731395453209,-633.9,0.00022739,2]
[342052318,1731395453218,-500.0,0.00022739,2]
[342052319,1731395453230,-500.0,0.00022739,2]
[342052320,1731395453244,-500.0,0.00022739,2]
[342052321,1731395453258,-815.11,0.00022739,2]
[342052322,1731395453269,-500.0,0.00022739,2]
[342052323,1731395453278,-611.92,0.00022739,2]